Cogmind - Beta 15 @@@ ROGUE MODE // 2025.07.28 @ 00:54:04 Player: Nikita Cogmindochkin Result: Destroyed by S-10 Pest with Light Assault Rifle Performance ------------- Evolutions (1) 500 Regions Visited (2) 400 Robots Destroyed (34) 170 Value Destroyed (842) 842 Prototype IDs (2) 40 Alien Tech Used (0) 0 Bonus (0) 0 TOTAL SCORE: 1952 Bonus ------- None Cogmind --------- Core Integrity 0/400 Matter 13/300 Energy 190/250 System Corruption 0% Temperature Cool (0) Movement Treading (240) Ox1 Location -9/Materials Parts ------- > --- POWER (1) -------- Ion Engine > --- PROPULSION (3) --- Light Treads > --- UTILITY (3) ------ Large Storage Unit Power Shielding > --- WEAPON (2) ------- (None) > --- INVENTORY (15) --- Improved Heat Sink Large Storage Unit Cargo Storage Unit Large Matter Pod (0) Targeting Computer Particle Charger Improved Assault Rifle Grenade Launcher Grenade Launcher Peak State ------------ > --- POWER ------------ Light Nuclear Core > --- PROPULSION ------- Compact Wheel > --- UTILITY ---------- Large Storage Unit Particle Charger Particle Charger > --- WEAPON ----------- Grenade Launcher Rocket Launcher > --- INVENTORY -------- Ion Engine Ion Engine Light Treads Improved Heat Sink Large Storage Unit Cargo Storage Unit Large Matter Pod Particle Charger Particle Charger Power Shielding Particle Gun Improved Assault Rifle Light Cannon Grenade Launcher [Rating: 16] Favorites ----------- Power Light Nuclear Core Engine Light Ion Engine Power Core Light Nuclear Core Propulsion Aluminum Leg Treads Light Treads Leg Aluminum Leg Wheel Compact Wheel Utility Large Storage Unit Device Particle Charger Storage Large Storage Unit Processor Terrain Scan Processor Protection Core Shielding Weapon Grenade Launcher Energy Gun EM Pulse Gun Energy Cannon Beam Cannon Ballistic Gun Assault Rifle Ballistic Cannon Light Cannon Launcher Grenade Launcher Build | -11 -10 -9 ------- Run | Yrd Mat Mat Slots Evolved 2 | . . 2 Power . | . . . Propulsion 1 | . . 1 Utility 1 | . . 1 Weapon . | . . . Parts Attached 38 | 5 25 8 Power 6 | 1 4 1 Engine 5 | 1 3 1 Core 1 | . 1 . Reactor . | . . . Propulsion 10 | 2 7 1 Treads 4 | . 3 1 Leg 3 | 2 1 . Wheel 3 | . 3 . Hover . | . . . Flight . | . . . Utility 13 | 1 8 4 Device 3 | . . 3 Storage 7 | 1 5 1 Processor 1 | . 1 . Hackware . | . . . Protection 2 | . 2 . Artifact . | . . . Weapon 9 | 1 6 2 Energy Gun 2 | . 1 1 Energy Cannon 1 | . 1 . Ballistic Gun 1 | 1 . . Ballistic Cannon 1 | . 1 . Launcher 4 | . 3 1 Special Weapon . | . . . Impact Weapon . | . . . Slashing Weapon . | . . . Piercing Weapon . | . . . Special Melee Weapon . | . . . Unidentified Prototypes . | . . . Corrupted Parts 1 | . 1 . System Corruption 4 | . 4 . Parts Lost 15 | . 5 10 Power 2 | . . 2 Propulsion 3 | . 1 2 Utility 4 | . 1 3 Weapon 6 | . 3 3 Highest Loss Streak 5 | . 2 5 To Critical Strikes . | . . . Average Backups 10 | 1 10 12 Power 1 | . 1 1 Propulsion . | . . . Utility 4 | . 4 7 Weapon 3 | . 3 3 Tool/Special . | . . . Unused Backups 15 | . 5 10 Power 2 | . 2 . Propulsion 2 | . 1 1 Utility 6 | . 1 5 Weapon 5 | . 1 4 Tool/Special . | . . . Average Slot Usage (%) 75 | . 77 68 Engine 5 | . 6 2 Core 7 | . 7 7 Treads 5 | . 6 . Leg 14 | . 18 . Wheel 4 | . 1 15 Device 2 | . . 15 Storage 15 | . 17 11 Processor 2 | . 2 . Protection 2 | . 2 2 Energy Gun 2 | . 2 . Energy Cannon 2 | . 2 . Launcher 8 | . 7 12 Peak Build Rating 16 | 5 10 16 Average Rating 8 | 3 7 12 On Entrance 4 | . 5 8 Naked Turns . | . . . Heaviest Build 38 | 10 34 38 Greatest Support 40 | 20 40 32 Greatest Overweight (x) 9 | . 8 9 Average Overweight (x) . | . . 1 Largest Inventory Capacity 30 | 8 30 15 Average Capacity 13 | 6 13 15 Most Carried 15 | 3 15 15 Average Carried 11 | 1 11 13 Final Capacity 15 | 8 15 15 Final Carried 15 | 2 15 10 Class Distribution -------------------- 100% | Mutant Dominant Class ---------------- Mutant | -10/Materials Mutant | -9/Materials Resources | -11 -10 -9 ----------- Run | Yrd Mat Mat Matter Collected 791 | 196 542 53 Remotely . | . . . Salvage Created 698 | . 570 128 Parts 60 | . 50 10 Haulers Intercepted 2 | . 1 1 Recyclers Shooed 1 | . 1 . Parts Field Recycled . | . . . Retrieved Matter . | . . . Parts Self-Destructed . | . . . Prevented . | . . . Kills | -11 -10 -9 ------- Run | Yrd Mat Mat Combat Hostiles Destroyed 19 | . 15 4 Guns 3 | . 3 . Cannons 3 | . 3 . AOE 13 | . 9 4 Classes Destroyed 8 | . 7 1 Worker 4 | . 3 1 Builder 3 | . 3 . Hauler 2 | . 1 1 Mechanic 1 | . 1 . Operator 1 | . 1 . Watcher 4 | . 3 1 Grunt 18 | . 15 3 Sentry 1 | . . 1 Best Kill Streak 4 | . 4 4 Combat Bots Only 3 | . 3 3 Max Kills in Single Turn 2 | . 2 2 Gunslinging . | . . . Exploded 2 | . 2 1 Melee . | . . . Uniques/NPCs Destroyed . | . . . Combat | -11 -10 -9 -------- Run | Yrd Mat Mat Hostile Shots Fired 214 | . 68 146 Missed 60 | . 17 43 Hits 154 | . 51 103 Projectile 154 | . 51 103 Critical Strikes 2 | . 1 1 Damage Taken 2098 | . 1035 1063 Core 629 | . 225 404 Absorbed by Shields . | . . . Redirected to Shielding 52 | . 15 37 Core Remaining (%) 55 | 100 10 . Volleys Fired 98 | . 82 16 Largest 1 | . 1 1 Hottest 65 | . 60 65 Shots Fired 100 | . 84 16 Gun 39 | . 36 3 Cannon 14 | . 14 . Launcher 47 | . 34 13 Special . | . . . Kinetic . | . . . Thermal 17 | . 14 3 Explosive 47 | . 34 13 Electromagnetic 36 | . 36 . Robot Hit Streak 13 | . 13 7 Robot Miss Streak 3 | . 3 2 Penetration Max . | . . . Secondary Targets . | . . . Shots Hit Robots 49 | . 42 7 Core Hits 50 | . 36 14 Critical Kills . | . . . Critical Parts Destroyed . | . . . Critical Strikes . | . . . Melee Attacks . | . . . Impact . | . . . Slashing . | . . . Piercing . | . . . Sneak Attacks . | . . . Combat Hostiles . | . . . Follow-up Attacks . | . . . Damage Inflicted 2448 | . 1915 533 Guns 328 | . 315 13 Cannons 193 | . 193 . Explosions 1903 | . 1395 508 Melee . | . . . Ramming 24 | . 12 12 Kinetic . | . . . Thermal 241 | . 228 13 Explosive 1868 | . 1360 508 Electromagnetic 315 | . 315 . Impact . | . . . Slashing . | . . . Piercing . | . . . Highest Corruption 11 | . 11 . Average Corruption 6 | . 6 . Corruption Purged . | . . . Corruption Blocked . | . . . Effects 24 | . 24 . Message Errors 6 | . 6 . Matter Fused 2 | . 2 . Heat Flow Errors 3 | . 3 . Energy Discharges 3 | . 3 . Parts Fused 1 | . 1 . Data Loss (minor) 6 | . 6 . Data Loss (major) 1 | . 1 . Misfires 2 | . 2 . Overload Shots . | . . . Overflow Damage 60 | . 50 10 Projectiles 15 | . 15 . Explosions 45 | . 35 10 Melee . | . . . Knockbacks . | . . . Impact . | . . . Kinetic . | . . . Secondary . | . . . Self-Inflicted Damage 146 | . 79 67 Shots 8 | . 4 4 Rammed 5 | . 2 3 Targets Rammed 5 | . 2 3 Kicked . | . . . Crushed . | . . . Highest Temperature 176 | . 176 54 Average Temperature 35 | . 40 13 Received Heat Transfer 528 | . 375 153 Siege Activations . | . . . Martial Activations . | . . . Shielding Activations . | . . . Robots Disrupted . | . . . Combat Hostiles . | . . . Robots Corrupted . | . . . Combat Hostiles . | . . . Parts Fried 1 | . 1 . Impact Corruptions . | . . . Robots Melted . | . . . Combat Hostiles . | . . . Parts Melted 1 | . 1 . Heat Transferred 444 | . 407 37 Parts Sabotaged . | . . . Parts Stolen . | . . . Parts Stripped . | . . . Power Chain Reactions 1 | . 1 . Alert | -11 -10 -9 ------- Run | Yrd Mat Mat Maximum Alert Level . | . . . Low Security (%) 100 | 100 100 100 Level 1 . | . . . Level 2 . | . . . Level 3 . | . . . Level 4 . | . . . Level 5 . | . . . High Security . | . . . Max Security . | . . . Peak Influence 151 | . 151 129 Initial 50 | . . 50 Average 48 | . 49 49 Influence Increases 823 | . 630 193 Destroy 0b10 Robot/C 380 | . 300 80 Destroy 0b10 Robot/NC 75 | . 60 15 Destroy Leader 112 | . 88 24 Successful Hack 22 | . 18 4 Disable Machine 45 | . 30 15 Destroy Structure 174 | . 134 40 Lose Combat Pursuer 15 | . . 15 Influence Decreases 823 | . 511 312 Entered New Map 69 | . . 69 Time Decay 644 | . 461 183 Lost Part 110 | . 50 60 Squads Dispatched 10 | . 7 3 Investigation 7 | . 6 1 Extermination . | . . . Reinforcement 3 | . 1 2 Assault . | . . . Garrison . | . . . Intercept . | . . . Searches Triggered . | . . . Construction Impeded . | . . . Haulers Reinforced . | . . . Active Scanning Responses . | . . . Cargo Convoy Interrupts . | . . . Stealth | -11 -10 -9 --------- Run | Yrd Mat Mat Distress Signals 3 | . 2 1 Communications Jammed . | . . . Distress Signals . | . . . Times Spotted 45 | . 24 21 Peak Tracking Total 9 | . 4 9 Tactical Retreats 1 | . . 1 Traps | -11 -10 -9 ------- Run | Yrd Mat Mat Traps Triggered 5 | . 5 . Indirectly . | . . . Trap Hack Attempts . | . . . Triggered . | . . . Disarmed . | . . . Reprogrammed . | . . . Reused . | . . . Traps Extracted . | . . . Installed . | . . . Triggered . | . . . Machines | -11 -10 -9 ---------- Run | Yrd Mat Mat Machines Disabled 3 | . 2 1 Max in Single Turn 1 | . 1 1 Machines Repaired . | . . . Machines Dismantled . | . . . Machines Sabotaged . | . . . Overloaded Fab Kills . | . . . Hacking | -11 -10 -9 --------- Run | Yrd Mat Mat Machines Accessed 8 | . 7 1 Terminals 6 | . 5 1 Fabricators . | . . . Repair Stations . | . . . Recycling Units 2 | . 2 . Scanalyzers . | . . . Garrison Access . | . . . Total Hacks 27 | . 24 3 Successful 11 | . 9 2 Failed 16 | . 15 1 Catastrophic 3 | . 3 . Database Lockouts . | . . . Manual . | . . . Terminals 21 | . 18 3 Fabricators . | . . . Repair Stations . | . . . Recycling Units 6 | . 6 . Scanalyzers . | . . . Garrison Access . | . . . Terminal Hacks 9 | . 7 2 Record 5 | . 5 . Prototype ID Bank 1 | . 1 . Locate Traps 1 | . . 1 Investigation Status 1 | . . 1 Registered Components 1 | . 1 . Fabricator Hacks . | . . . Repair Station Hacks . | . . . Recycling Unit Hacks 2 | . 2 . Process 1 | . 1 . Report Inventory 1 | . 1 . Scanalyzer . | . . . Garrison Access Hacks . | . . . Unauthorized Hacks . | . . . Terminals . | . . . Fabricators . | . . . Repair Stations . | . . . Recycling Units . | . . . Scanalyzers . | . . . Garrison Access . | . . . Data Cores Recovered . | . . . Used . | . . . Hacking Detections 8 | . 7 1 Full Trace Events 8 | . 7 1 Feedback Events . | . . . Feedback Blocked . | . . . Robot Schematics Acquired . | . . . Robots Built . | . . . Authchips . | . . . Time . | . . . Total Robot Build Rating . | . . . Part Schematics Acquired . | . . . Parts Built . | . . . Authchips . | . . . Time . | . . . Total Part Build Rating . | . . . Parts Repaired . | . . . Time . | . . . Parts Recycled . | . . . Recycled Matter 253 | . 253 . Retrieved Matter . | . . . Retrieved Components . | . . . Parts Scanalyzed . | . . . Part Schematics Acquired . | . . . Parts Damaged . | . . . Bothacking | -11 -10 -9 ------------ Run | Yrd Mat Mat Used RIF Installer . | . . . Robots Hacked . | . . . Non-combat . | . . . Combat . | . . . Robot Hacks Applied . | . . . Relay Couplers Released . | . . . Fabnet Peak Effective % . | . . . Robots Rewired . | . . . Allies Hacked . | . . . Hacks Repelled . | . . . Allies | -11 -10 -9 -------- Run | Yrd Mat Mat Total Allies . | . . . Largest Group . | . . . Highest-Rated Group . | . . . Highest-Rated Ally . | . . . Total Orders . | . . . Ally Attacks . | . . . Total Damage . | . . . Kills . | . . . Allies Corrupted . | . . . Allies Melted . | . . . Intel | -11 -10 -9 ------- Run | Yrd Mat Mat Active Infowar (turns) . | . . . Robot Analysis Total . | . . . Derelict Logs Recovered . | . . . Drone Launches . | . . . Drone Recoveries . | . . . Exploration | -11 -10 -9 ------------- Run | Yrd Mat Mat Turns Passed 2268 | 61 1801 406 Spaces Moved 1252 | 47 939 266 Core 19 | 9 8 2 Treads 233 | . 228 5 Legs 692 | 38 654 . Wheels 308 | . 49 259 Hover . | . . . Flight . | . . . Fastest Speed 50 | 50 100 100 Average Speed 152 | 106 163 124 Slowest Speed 500 | 120 450 500 Overloaded Moves . | . . . Propulsion Burnouts . | . . . Robots Hopped . | . . . Potential Cave-ins 2 | . 2 . Cave-ins Triggered 1 | . 1 . Exploration Rate (%) 39 | 4 89 25 Regions Visited 2 Branch Regions . Pre-discovered Areas . | . . . Known Exits Taken . | . . . Unknown Exits Taken 2 | 1 1 . Scrap Searched . | . . . Spaces Dug . | . . . Terrain Destroyed 275 | . 229 46 Melee . | . . . Projectile . | . . . AOE 275 | . 229 46 Terrain Rammed . | . . . Walls Destroyed . | . . . Machines Disabled . | . . . Actions | -11 -10 -9 --------- Run | Yrd Mat Mat Total 1509 | 58 1125 326 Wait 38 | . 23 15 Move 1250 | 46 938 266 Hop . | . . . Pick Up 43 | 7 27 9 Fast Attach 12 | . 10 2 Attach 20 | 5 8 7 Detach 3 | . 3 . Swap 16 | . 15 1 Drop 24 | . 17 7 Fire 98 | . 82 16 Melee . | . . . Ram 3 | . . 3 Kick . | . . . Crush 2 | . 2 . Escape Stasis . | . . . Rewire . | . . . Trap . | . . . Miscellaneous . | . . . Route ------- -11/Scrapyard -10/Materials (discovered 4 exits: *Mat x3 / [*Min]) -9/Materials History --------- Turn | Location | Event 3 | -11/Scrapyard | Discovered new exit (range 15) 62 | -11/Scrapyard | Entered Materials 318 | -10/Materials | Build established: Mutant 447 | -10/Materials | Discovered new exit (range 14) 510 | -10/Materials | Discovered new exit (range 15) 550 | -10/Materials | Discovered new exit (range 16) 1111 | -10/Materials | Core integrity fell below 50% 1176 | -10/Materials | Discovered new exit (range 7) 1584 | -10/Materials | Crushed by falling debris 1584 | -10/Materials | Core integrity fell below 20% 1584 | -10/Materials | System corruption reached 10% 1863 | -10/Materials | Entered another Materials area 1863 | -9/Materials | Evolved 2 slots: Propulsion x1, Utility x1 2184 | -9/Materials | Lost 4 parts (1p2u1w) 2236 | -9/Materials | Core integrity fell below 50% 2253 | -9/Materials | Core integrity fell below 20% 2269 | -9/Materials | Destroyed by S-10 Pest with Light Assault Rifle Last Messages --------------- 02102_ O-16 Technician: "IFF HANDSHAKE FAILED. SECURING TERMINAL." 02108_ ALERT: Hostiles spotted, dispatching reinforcements to Terminal M003. 02137_ Lgt. Nuclear Core destroyed. 02140_ Grenade Launcher destroyed. 02143_ Particle Charger destroyed. 02143_ U-05 Engineer destroyed. 02153_ Acquired 23 matter. 02153_ Particle Charger destroyed. 02175_ M-13 Machinist repairs Y-45 Defender. 02183_ ALERT: Hostiles spotted, dispatching reinforcements to Terminal M008. 02217_ Acquired Targeting Computer. 02226_ Rocket Launcher destroyed. 02236_ Particle Charger destroyed. 02243_ Slammed into S-10 Pest. 02246_ Com. Wheel destroyed. 02249_ Particle Gun destroyed. 02249_ Ion Engine destroyed. 02255_ S-10 Pest destroyed. Map ----- +----------------------------------------------------+ | ????????????????????????????????????? | | ??????????????????????????????????### | | ??????????????????????????????????#!! | | ??????????????????????????????????#!! | | ??????????????????????????????????# | | ????????????????????????????######### | | ????????????????????????????# | | ????????????????????????????# """ | | ????????????????????????????# """ | | ????????????????????????????#"" """ | | ????????????????????????????#"" | | ????????????????????????????#"T """ | | ????????????????????????????#"" """ | | ????????????????????????????#"" """ | | ????????????????????????????# | | ????????????????????????????######### | | ????????????????????????????????????? | | ????????????????????????????????????? | | ????????????????????????????????????? | | ????????????????????????????????????? | | ??????####+#####????????????????????? | | ??????#] #????????????????????? | | ??????# #????????????????????? | | ??????# #????????????????##### | | ??????# """ #????????????????# | | ??????#"""""@ #????????????????# | | ??????#""""" = #?###????????????# " | | ??????#"""""s%[#? ????????????#[ " | | ??????# """=%ss#? ????????????# " | | ??????# s #? ????????????# | | ??????#####s####? ????????????# | | ??????????#g#???? ????????????###+# | | ??????????#Y#????# #????????????### # | | ?????###### #????# #????????????# | | ???# + ###### ############## "" | | ???# # T | | ???# # ### ######## ##### | | ???# ?+ ###+######## #???# | | ???# ??# # T ## #???##### | | ???# ???# # ## #???????? | | ???####???# + ## ######### | | ?????????? # # / | | ?????????# " # # """ """ ## ######### | | ?????????# # # """ """ ## #???????? | | ?????????# # # """ """ ## #???????? | | ????????? # # ## #???????? | | ????????? !# #####/###### #???????? | | ????????!!!!#? #???? ???? +???????? | | ????????####?? #????? ????###???????? | | ?????????????? ?????? ??????????????? | +----------------------------------------------------+ Best States ------------- Heat Dissipation 28 Energy Generation 14 Energy Capacity 250 Matter Stores 317 Matter Capacity 450 Sight Range 16 Terrain Scan Density 85 Core Shielding 20 Power Shielding 33 Evasion (%) 55 Recoil Reduction 2 Particle Charging 22 Item Schematics ----------------- None Robot Schematics ------------------ None Fabricated ------------ Nothing Repaired ---------- Nothing Alien Tech Used ----------------- None Achievements -------------- Party Time Challenges ------------ None Game ------ Seed PhasingHelicalPower Manual? 0 Play Time 00:29:34 Cumulative 2.4 hours Start 2025.07.28 @ 00:24:36 End 2025.07.28 @ 00:54:04 Sessions 1 Manual Loads 0 Difficulty Rogue Special Mode None Game No. 7 Rogue 7 Adventurer 0 Explorer 0 Win Type - Total 0 Types 0/0/0/0/0/0/0/0/0/0 Lore% 0 Gallery% 4 Achievement% 12 Wizard Run 0 Options --------- Layout 1 ASCII 1 Keyboard 0 Movement Mouse Keybinds 0 Fullscreen 1 Font 32/SmallcapsGlow Map View 77x35 Zoom Use 0% Tactical HUD 1 Map Filters NONE Filters NONE Steam 1 RUN: 696073cd-2233-4d25-b1ba-00dd8da2aafa